[Event "Israel-ch Semi-final 2022"]
[Site "Ramat Gan"]
[Date "2022.06.13"]
[Round "5.10"]
[White "Ribstein, Orel"]
[Black "Horesh, Tal"]
[Result "0-1"]
[ECO "E16"]
[WhiteElo "1962"]
[BlackElo "1973"]
[Annotator "TA"]
[PlyCount "114"]
[EventDate "2022.05.09"]
[EventType "swiss"]
[EventCountry "ISR"]
[SourceTitle "playchess.com"]
[Source "ChessBase"]
[SourceQuality "1"]
[TimeControl "40/5400+30:1800+30"]

{[%evp 15,114,31,35,27,43,30,36,41,44,23,23,20,19,22,22,19,13,11,13,3,40,38,38,0,69,68,66,57,75,62,66,29,39,6,16,0,0,-75,-70,-57,-66,-70,-22,-66,3,-80,-81,-67,-52,-54,-64,-66,-49,-106,-114,-115,-96,-188,-170,-154,-51,-85,-80,-71,-78,-71,-70,-84,-70,-77,-74,-316,-308,-479,-476,-537,-527,-664,-585,-665,-642,-886,-879,-1750,-1581,-29975,-29976,-29973,-29977,-29977,-29978,-29978,-29979,-29976,-29978,-29978,-29979,-29988,-29989,-29989,-29990]} 1. d4 {[%emt 0:00:06]} Nf6 {[%emt 0:00:13]} 2. c4 {[%emt 0:00:41]} e6 {[%emt 0:00:33]} 3. g3 {[%emt 0:00:08]} Bb4+ {[%emt 0:01:10]} 4. Nd2 {[%emt 0:00:10]} d5 {[%emt 0:02:58]} 5. Bg2 {[%emt 0:00:15]} O-O {[%emt 0:01:42]} 6. Ngf3 {[%emt 0:00:47]} Nbd7 {[%emt 0:01:56]} 7. O-O {[%emt 0:00:22]} b6 {[%emt 0:02:03]} 8. Ne5 {[%emt 0:03:01]} Bb7 {[%emt 0:00:40]} 9. Qa4 {[%emt 0:00:53] Threatens to win with Nxd7. E16: Queen's Indian: 4 g3 Bb7 5 Bg2 Bb4+.} Bxd2 {[%emt 0:03:53]} 10. Bxd2 {[%emt 0:00:03]} Nxe5 {[%emt 1:20:22]} 11. dxe5 {[%emt 0:00:50] White is slightly better.} Nd7 {[%emt 0:00:00]} 12. Bc3 {[%emt 0:19:26]} Nc5 {[%emt 0:00:00]} 13. Qc2 {[%emt 0:00:22]} dxc4 {[%emt 0:00:00]} 14. Bxb7 {[%emt 0:01:35]} Nxb7 {[%emt 0:00:00]} 15. Rfd1 {[%emt 0:00:41]} Qe7 {[%emt 0:00:00]} 16. Qe4 {[%emt 0:00:43][%csl LRb7,LRc4]} c5 {[%emt 0:00:00]} 17. Qxc4 {[%emt 0:03:56]} Rfd8 {[%emt 0:00:00]} 18. Qa6 {[%emt 0:10:22] [#]} Qc7 $146 {[%emt 0:00:00]} ({Predecessor:} 18... Rxd1+ 19. Rxd1 Rd8 20. Rc1 Ra8 21. h4 h6 22. Rd1 Rd8 23. Rd3 Rxd3 24. exd3 Nd8 {1-0 (52) Ipatov,A (2624)-Yelken,M (2107) Adana 2015}) 19. Qa4 {[%emt 0:20:23]} h6 {[%emt 0:00:00]} (19... a5 $11) 20. Rxd8+ $1 $14 {[%emt 0:00:34]} Qxd8 {[%emt 0:00:00]} 21. Rd1 {[%emt 0:02:45]} Qc8 {[%emt 0:00:00]} 22. Qb5 {[%emt 0:06:36]} Kf8 {[%emt 0:00:00]} 23. f4 {[%emt 0:01:36]} Qe8 {[%emt 0:00:00]} 24. Qc4 {[%emt 0:05:39]} Rd8 {[%emt 0:00:00]} 25. Rf1 {[%emt 0:00:25]} Qc6 {[%emt 0:00:00] Inhibits Qe4.} 26. e4 {[%emt 0:06:50]} (26. Qa6 $11) 26... b5 $17 {[%emt 0:00:00]} 27. Qe2 {[%emt 0:00:01]} b4 $36 {[%emt 0:00:00][%mdl 2048] Black has the initiative.} 28. Bd2 {[%emt 0:00:00]} Rd4 {[%emt 0:00:00]} (28... Kg8 $15) 29. Re1 {[%emt 0:00:01]} Qa4 {[%emt 0:00:00]} (29... a5 $15) 30. f5 {[%emt 0:11:28]} (30. Be3 $11 Rxe4 31. Qg2) 30... Qc2 {[%emt 0:00:00]} 31. Bf4 {[%emt 0:04:08]} Qxe2 {[%emt 0:00:00]} 32. Rxe2 $15 {[%emt 0:00:00][%mdl 4096] Endgame KRB-KRN} c4 {[%emt 0:00:00]} 33. Kg2 {[%emt 0:01:31]} Ke8 {[%emt 0:00:00]} 34. g4 {[%emt 0:00:26]} (34. fxe6 $15 fxe6 35. Kf3) 34... Nc5 $17 {[%emt 0:00:00]} 35. Kf3 {[%emt 0:00:00]} Rd3+ {[%emt 0:05:29]} 36. Kg2 {[%emt 0:00:34]} (36. Be3 $17) 36... Kd7 {[%emt 0:01:36]} 37. h4 {[%emt 0:00:04]} Kc6 {[%emt 0:00:42]} (37... Rd1 $17 {Strongly threatening ...Nd3.} 38. h5 Nd3) 38. f6 {[%emt 0:01:30] [#]} g5 {[%emt 0:01:43]} 39. hxg5 {[%emt 0:00:25]} hxg5 {[%emt 0:00:01]} 40. Bxg5 {[%emt 0:00:01]} Nd7 {[%emt 0:02:17]} 41. Bf4 {[%emt 0:05:50]} Nf8 {[%emt 0:01:05][%mdl 1024] Black has strong compensation.} 42. Kf2 {[%emt 0:08:26]} Ng6 {[%emt 0:00:20]} 43. Bg3 {[%emt 0:00:35] This move loses the game for White.} (43. Be3 $17) 43... Kc5 $19 {[%emt 0:01:12] ...c3 is the strong threat.} 44. g5 {[%emt 0:03:28]} (44. Bh2 $142) 44... c3 {[%emt 0:00:36]} 45. bxc3 {[%emt 0:00:27]} bxc3 {[%emt 0:32:29]} 46. Rc2 {[%emt 0:15:26]} Kc4 {[%emt 0:00:30]} 47. Re2 {[%emt 0:00:30]} a5 {[%emt 0:00:30][%cal Ba7a5,Ba5a4,Ba4a3][%mdl 32]} 48. Rc2 {[%emt 0:00:30]} a4 {[%emt 0:00:00]} 49. Re2 {[%emt 0:00:30]} a3 {[%emt 0:00:00][%cal Od3g3] ( -> ...Rxg3!)} 50. Rc2 {[%emt 0:00:00] [#]} Rxg3 $1 {[%emt 0:00:00][%mdl 512] Black mates.} 51. Kxg3 {[%emt 0:00:00] KR-KN} Kd3 {[%emt 0:00:00]} 52. Rc1 {[%emt 0:00:00]} Kd2 {[%emt 0:00:00]} 53. Rf1 {[%emt 0:00:00]} c2 {[%emt 0:00:00]} 54. Rf2+ {[%emt 0:00:00]} Kc3 {[%emt 0:00:00]} 55. Rf3+ {[%emt 0:00:00]} Kb2 {[%emt 0:00:00]} 56. Rb3+ {[%emt 0:00:00]} Kxa2 {[%emt 0:00:00]} 57. Rc3 {[%emt 0:00:00]} Kb2 {[%emt 0:00:00] Weighted Error Value: White=0.53/Black=0.12 (very precise)} 0-1

[Event "Israel-ch Semi-final 2022"]
[Site "Ramat Gan"]
[Date "2022.06.13"]
[Round "6.1"]
[White "Dvoirys, Semen I."]
[Black "Ben Ari, Yannay"]
[Result "1-0"]
[ECO "B88"]
[WhiteElo "2439"]
[BlackElo "2409"]
[Annotator "RC"]
[PlyCount "55"]
[EventDate "2022.05.09"]
[EventType "swiss"]
[EventCountry "ISR"]
[SourceTitle "playchess.com"]
[Source "ChessBase"]
[SourceQuality "1"]
[TimeControl "40/5400+30:1800+30"]

1. e4 {[%emt 0:00:04]} c5 {[%emt 0:00:03]} 2. Nf3 {[%emt 0:00:05]} d6 {[%emt 0:00:04]} 3. d4 {[%emt 0:00:09]} cxd4 {[%emt 0:00:08]} 4. Nxd4 {[%emt 0:00:01]} Nf6 {[%emt 0:00:02]} 5. Nc3 {[%emt 0:00:08]} a6 {[%emt 0:00:11]} 6. Bc4 {[%emt 0:00:16]} e6 {[%emt 0:00:03]} 7. a4 {[%emt 0:00:16]} Be7 {[%emt 0:00:16]} 8. O-O {[%emt 0:00:07]} O-O {[%emt 0:00:21]} 9. Qe2 {[%emt 0:05:08]} Qc7 {[%emt 0:14:30]} 10. Be3 {[%emt 0:10:30]} Nc6 {[%emt 0:02:34]} 11. f4 {[%emt 0:01:13]} Bd7 {[%emt 0:03:51]} 12. f5 {[%emt 0:06:54]} d5 {[%emt 0:17:16]} 13. fxe6 {[%emt 0:06:36]} Nxd4 {[%emt 0:01:05]} 14. Bxd4 {[%emt 0:00:08]} Bc5 {[%emt 0:04:38]} 15. Bf2 {[%emt 0:25:16]} Bxe6 {[%emt 0:27:17]} 16. Nxd5 {[%emt 0:01:07]} Bxd5 {[%emt 0:00:04]} 17. Bxd5 {[%emt 0:01:06]} Rfe8 {[%emt 0:07:00]} 18. c4 {[%emt 0:09:47]} Rac8 {[%emt 0:02:22]} 19. Qf3 {[%emt 0:01:16]} Bd6 {[%emt 0:04:39]} 20. h3 {[%emt 0:00:21]} Nxd5 {[%emt 0:03:15]} 21. cxd5 {[%emt 0:00:16]} Qe7 {[%emt 0:00:40]} 22. Bd4 {[%emt 0:14:00]} f6 {[%emt 0:00:05]} 23. Rae1 {[%emt 0:00:16]} Rc4 {[%emt 0:01:55]} 24. e5 {[%emt 0:00:20]} Rxd4 {[%emt 0:03:55]} 25. exf6 {[%emt 0:02:42]} Qxe1 {[%emt 0:00:27]} 26. f7+ {[%emt 0:00:06]} Kh8 {[%emt 0:00:05]} 27. Rxe1 {[%emt 0:00:07]} Rxe1+ {[%emt 0:02:56]} 28. Kf2 {[%emt 0:00:05]} 1-0

[Event "Israel-ch Semi-final 2022"]
[Site "Ramat Gan"]
[Date "2022.06.13"]
[Round "6.2"]
[White "Mordechai, Hanan"]
[Black "Aharonovich, Itamar"]
[Result "1-0"]
[ECO "C45"]
[WhiteElo "2313"]
[BlackElo "2324"]
[Annotator "TA"]
[PlyCount "135"]
[EventDate "2022.05.09"]
[EventType "swiss"]
[EventCountry "ISR"]
[SourceTitle "playchess.com"]
[Source "ChessBase"]
[SourceQuality "1"]
[TimeControl "40/5400+30:1800+30"]

{[%evp 19,135,-11,31,30,18,20,16,23,66,67,59,68,71,56,55,54,50,53,81,68,101,92,114,114,120,89,91,80,76,83,74,84,214,16,9,0,0,0,0,0,0,0,0,0,48,0,0,0,0,0,0,0,0,0,0,0,0,0,40,0,0,0,0,0,0,0,0,0,0,0,0,0,33,0,0,0,14,0,13,0,0,-10,0,0,0,-127,-117,-164,2,3,3,4,512,499,582,582,553,550,447,195,195,195,2156,1386,1888,1562,29950,29958,29960,29960,29975,29976,29973,29975,29974,29975,11376,5226]} 1. e4 {[%emt 0:00:02]} e5 {[%emt 0:02:46]} 2. Nf3 {[%emt 0:00:06]} Nc6 {[%emt 0:00:18]} 3. d4 {[%emt 0:00:04]} exd4 {[%emt 0:00:25]} 4. Nxd4 {[%emt 0:00:02]} Nf6 {[%emt 0:00:52][%cal Bg8f6,Bf6d5,Bd5b6][%mdl 32]} 5. Nxc6 {[%emt 0:00:05]} bxc6 {[%emt 0:00:07]} 6. e5 {[%emt 0:00:01]} Qe7 {[%emt 0:00:09]} 7. Qe2 {[%emt 0:00:01]} Nd5 {[%emt 0:00:12]} 8. c4 {[%emt 0:00:04]} Nb6 {[%emt 0:00:18]} 9. Nc3 {[%emt 0:00:20]} Qe6 {[%emt 0:01:08]} 10. Qe4 {[%emt 0:00:39]} Bb4 {[%emt 0:03:13]} (10... g6 $5 {[%cal Rf8g7]}) 11. Bd2 {[%emt 0:00:54] C45: Scotch Game.} O-O {[%emt 0:08:45]} 12. Bd3 {[%emt 0:02:07][%csl Gd3][%cal Re4h7]} g6 {[%emt 0:01:05]} 13. O-O {[%emt 0:05:57] [#] The position is equal.} f5 $146 {[%emt 0:14:39]} ({Predecessor:} 13... d5 14. cxd5 Nxd5 15. Nxd5 Bxd2 16. Nxc7 Qe7 17. Nxa8 Bb7 18. Bc4 Bxa8 19. Rad1 Rd8 20. Qe2 Bf4 21. Rxd8+ Qxd8 22. e6 Qd6 23. e7 {1-0 (23) Bulmaga,I (2390)-Ciolacu,A (2239) Bucharest 2022}) 14. exf6 {[%emt 0:27:26]} Qxe4 {[%emt 0:00:11]} 15. Nxe4 {[%emt 0:00:38]} ({Much weaker is} 15. Bxe4 Nxc4 16. Bg5 Rb8 $11) 15... Bxd2 {[%emt 0:00:30]} 16. Nxd2 {[%emt 0:00:14]} Ba6 {[%emt 0:00:23]} 17. Rfe1 {[%emt 0:03:18]} Rxf6 {[%emt 0:05:34]} 18. Ne4 {[%emt 0:01:05]} Rf5 {[%emt 0:13:00]} 19. Rad1 {[%emt 0:08:43]} d6 {[%emt 0:13:05] [#]} 20. Nxd6 {[%emt 0:11:09][%mdl 512]} cxd6 {[%emt 0:02:51]} 21. Bxf5 {[%emt 0:00:12]} gxf5 {[%emt 0:00:05]} 22. b3 {[%emt 0:05:40]} d5 {[%emt 0:04:11]} 23. c5 {[%emt 0:00:46]} Nd7 {[%emt 0:00:22]} 24. Re7 {[%emt 0:00:19]} Rd8 {[%emt 0:07:58]} 25. f3 {[%emt 0:07:02] White is more active.} Nxc5 {[%emt 0:07:10]} (25... Bb5 $16) 26. Rxa7 $2 {[%emt 0:01:59]} (26. Rc1 $18 Nd3 27. Rxc6) 26... Rd7 $11 {[%emt 0:00:58]} 27. Ra8+ {[%emt 0:03:23]} Kf7 {[%emt 0:00:08]} 28. b4 {[%emt 0:04:00]} Bb7 $1 {[%emt 0:00:05]} 29. Rh8 {[%emt 0:03:47]} Kg7 {[%emt 0:00:17]} 30. Re8 {[%emt 0:00:10]} Na6 {[%emt 0:00:49]} 31. Rde1 {[%emt 0:02:20]} Kf6 {[%emt 0:01:41] Prevents R1e7.} (31... Kf7 $11 {is more appropriate.}) 32. R8e6+ {[%emt 0:06:56]} (32. a3 $1 $14) 32... Kf7 {[%emt 0:00:44]} 33. Rh6 {[%emt 0:01:01]} Kg7 {[%emt 0:00:14]} 34. Rhe6 {[%emt 0:00:09]} Kf8 {[%emt 0:00:51] Prevents Re7.} 35. Re8+ {[%emt 0:04:53]} Kf7 {[%emt 0:00:04]} 36. Rh8 {[%emt 0:00:11]} Kf6 {[%emt 0:05:43]} 37. Rf8+ {[%emt 0:01:51]} Kg7 {[%emt 0:07:11]} 38. Rfe8 {[%emt 0:00:30]} Kf6 {[%emt 0:00:08] Inhibits R8e7.} 39. R8e6+ {[%emt 0:00:06][%mdl 1024] White has compensation.} (39. a3 $5 {[%cal Re8f8]}) 39... Kf7 {[%emt 0:00:30]} 40. Rh6 {[%emt 0:00:13]} Kf8 {[%emt 0:00:16]} 41. a3 {[%emt 0:04:31]} Nc7 {[%emt 0:04:18]} 42. Rf6+ {[%emt 0:02:22]} Rf7 {[%emt 0:01:38]} 43. Rd6 {[%emt 0:00:21]} Nb5 {[%emt 0:02:22][%csl LRa3,LRd6]} 44. Rd8+ {[%emt 0:00:17]} Kg7 {[%emt 0:00:02]} 45. a4 {[%emt 0:00:51]} Nd4 {[%emt 0:06:15]} (45... Nc3 $5 {[%cal Rc3a4]}) 46. a5 {[%emt 0:05:36]} Ba6 {[%emt 0:05:39]} 47. Ra8 {[%emt 0:03:37]} Bb7 {[%emt 0:01:35]} 48. Rd8 {[%emt 0:04:38]} f4 {[%emt 0:03:45]} 49. Rb1 {[%emt 0:05:40]} Re7 {[%emt 0:00:48]} 50. Rb8 {[%emt 0:00:26]} Kf6 {[%emt 0:02:29]} 51. h4 {[%emt 0:03:42]} Ba6 {[%emt 0:02:21]} 52. Rb6 {[%emt 0:00:15]} (52. Ra8 $11 {keeps the balance.} Bb7 53. Rb8) 52... Bb5 $1 $17 {[%emt 0:00:13]} 53. a6 {[%emt 0:02:37] [#]} (53. Rb8 $17) 53... h5 $2 {[%emt 0:00:40]} (53... Ra7 $1 $19 54. Ra1 Nf5) 54. Ra1 $11 {[%emt 0:00:37]} Ra7 {[%emt 0:00:10] ...Nf5 is the strong threat.} 55. Ra5 $1 {[%emt 0:00:17] Black must now prevent Rb7.} Ke5 $2 {[%emt 0:00:18][%mdl 8192] [#]} (55... Bc4 $1 $11) 56. Rb7 $1 $18 {[%emt 0:00:35]} Rxa6 {[%emt 0:00:20] [#]} (56... Ne2+ $2 57. Kf2 Rxa6 58. Rbxb5 cxb5 59. Rxa6) 57. Rbxb5 {[%emt 0:00:04][%mdl 512]} Rxa5 {[%emt 0:00:35]} 58. Rxa5 {[%emt 0:00:05][%mdl 4096] Endgame KR-KN} Nc2 {[%emt 0:00:03]} 59. b5 {[%emt 0:00:31]} (59. Ra7 $142) 59... cxb5 {[%emt 0:00:07]} 60. Rxb5 {[%emt 0:00:01]} Kd4 $2 {[%emt 0:00:31]} (60... Nd4 61. Rb8 Nf5) 61. Rb8 {[%emt 0:00:46] Hoping for Rh8.} Ke3 {[%emt 0:00:27]} 62. Re8+ {[%emt 0:00:35]} Kd2 {[%emt 0:00:05]} 63. Re5 {[%emt 0:00:50][%csl LRd5,LRh5]} Ne3 {[%emt 0:00:45]} 64. Rxh5 {[%emt 0:01:46]} Ke2 {[%emt 0:00:09]} 65. Rh8 {[%emt 0:00:45]} (65. Re5 d4 $11) 65... d4 {[%emt 0:02:01]} 66. h5 {[%emt 0:00:07][%cal Bh4h5,Bh5h6][%mdl 32]} d3 {[%emt 0:00:47]} 67. h6 {[%emt 0:00:25]} d2 {[%emt 0:00:13]} 68. Rd8 {[%emt 0:00:04] Weighted Error Value: White=0.21 (precise) /Black=0.31} 1-0

[Event "Israel-ch Semi-final 2022"]
[Site "Ramat Gan"]
[Date "2022.06.13"]
[Round "6.3"]
[White "Zemach, Nadav"]
[Black "Yaniv, Yuval"]
[Result "1/2-1/2"]
[ECO "E04"]
[WhiteElo "2238"]
[BlackElo "2301"]
[Annotator "TA"]
[PlyCount "166"]
[EventDate "2022.05.09"]
[EventType "swiss"]
[EventCountry "ISR"]
[SourceTitle "playchess.com"]
[Source "ChessBase"]
[SourceQuality "1"]
[TimeControl "40/5400+30:1800+30"]

{[%evp 11,166,-2,-7,-2,0,-2,9,19,11,0,0,0,0,0,0,-32,-33,-100,-28,-155,-171,-181,-168,-265,-251,-250,-262,-262,-175,-231,-226,-222,-173,-235,-99,-102,-108,-206,-198,-329,-339,-322,-317,-314,-310,-263,-184,-210,-98,-178,-171,-193,-187,-187,-117,-130,-120,-127,-90,-112,-106,-131,-126,-138,-123,-122,-119,-118,-117,-118,-117,-128,-130,-160,-152,-152,-152,-152,-152,-152,-152,-153,-145,-145,-110,-145,-144,-152,-138,-145,-145,-160,-145,-145,-135,-134,-116,-160,-160,-160,-160,-160,-131,-168,-163,-211,-211,-211,-211,-211,0,-211,-211,-211,-211,-211,-211,-211,-211,-210,-196,-443,-211,-364,-211,-395,-211,-450,-414,-387,-391,-450,-449,-459,-452,-437,-437,-387,-366,-338,-211,-225,-211,-4930,-1022,-862,0,-1025,-1018,-29979,-29977,-29977,-29978,-29967,0,-29963,0]} 1. d4 {[%emt 0:00:03]} Nf6 {[%emt 0:00:22]} 2. c4 {[%emt 0:00:05]} e6 {[%emt 0:00:11]} 3. g3 {[%emt 0:00:05]} d5 {[%emt 0:00:15]} 4. Bg2 {[%emt 0:00:07]} dxc4 {[%emt 0:00:10]} 5. Nf3 {[%emt 0:00:16]} c6 {[%emt 0:00:14]} 6. O-O {[%emt 0:03:17]} b5 {[%emt 0:00:29]} 7. Ne5 {[%emt 0:00:46] E04: Open Catalan: 5 Nf3.} Bb7 {[%emt 0:00:16]} 8. a4 {[%emt 0:02:51]} Qc8 {[%emt 0:00:54]} 9. b3 {[%emt 0:06:46] The position is equal.} cxb3 {[%emt 0:00:22]} 10. Qxb3 {[%emt 0:00:13]} b4 {[%emt 0:01:25]} 11. a5 {[%emt 0:03:34]} c5 {[%emt 0:10:22]} 12. Bxb7 {[%emt 0:16:17]} Qxb7 {[%emt 0:01:20]} 13. dxc5 {[%emt 0:00:05]} Bxc5 {[%emt 0:01:31]} 14. Nd3 {[%emt 0:08:41]} (14. Qa4+ $15 Nbd7 15. Nxd7 Qxd7 16. Qxd7+ Nxd7 17. Nd2) 14... Be7 {[%emt 0:01:51] [#]} (14... Na6 $1 $17 15. Bb2 O-O) 15. Na3 $146 {[%emt 0:08:46]} (15. a6 $11 {keeps the balance.} Qd5 16. Qa4+ Nbd7 17. Nxb4) ({Predecessor:} 15. a6 Qe4 16. Be3 O-O {½-½ (16) Pajeken,J (2395)-Khenkin,I (2540) Kiel 2021}) 15... O-O {[%emt 0:04:00]} 16. Nc2 {[%emt 0:00:53][%cal Rc2b4]} Nc6 {[%emt 0:04:45]} 17. Bd2 {[%emt 0:10:32]} (17. a6 $142 Qb5 18. Bb2) 17... Ne4 $19 {[%emt 0:03:15]} 18. Be1 {[%emt 0:00:07]} Rab8 {[%emt 0:03:19]} 19. Rb1 {[%emt 0:08:49]} Nxa5 {[%emt 0:19:26]} 20. Qa2 {[%emt 0:03:08]} (20. Qa4 $142 Nc6 21. Ndxb4) 20... Nc6 $1 {[%emt 0:01:39]} ({And not} 20... Ng5 21. h4 Nc6 22. hxg5 $14) 21. Ncxb4 {[%emt 0:01:00]} Nd4 {[%emt 0:02:03][%cal Oa7a5] aiming for ...a5!} ({Not} 21... Nxb4 22. Bxb4 Bxb4 23. Rxb4 $15) 22. Rb2 {[%emt 0:03:46]} (22. f3 {is a better defense.} a5 23. Qxa5 Nxe2+ 24. Kg2) 22... Qd7 {[%emt 0:05:33]} (22... Ng5 $19 {[%cal Rg5h3]} 23. f3 a5 24. Qxa5 Ra8) 23. f3 $17 {[%emt 0:02:34]} Nc5 $40 {[%emt 0:01:57][%mdl 128] Black is out for blood.} 24. Ne5 {[%emt 0:03:57]} (24. Kg2 $17) 24... Qc7 $1 $19 {[%emt 0:03:56]} 25. Nc4 {[%emt 0:02:43] [#]} (25. Nbd3 $142) 25... Ncb3 $1 {[%emt 0:02:21][%mdl 512]} 26. Na6 {[%emt 0:02:25]} Qxc4 {[%emt 0:00:18]} 27. Nxb8 {[%emt 0:00:04]} Rxb8 {[%emt 0:00:11]} 28. Qxa7 {[%emt 0:02:43]} Nc6 {[%emt 0:00:28]} 29. Qa2 {[%emt 0:01:34]} Bc5+ {[%emt 0:08:02]} (29... Bf6 $19 {has better winning chances.} 30. Rc2 Qd5) 30. Kg2 {[%emt 0:00:11]} (30. Bf2 $17) 30... h5 {[%emt 0:02:59]} 31. Rc2 {[%emt 0:02:03]} Qd5 {[%emt 0:07:39]} 32. Bc3 {[%emt 0:00:26]} Rd8 {[%emt 0:01:15]} (32... Ncd4 $19 33. Bxd4 Bxd4) 33. Rb2 {[%emt 0:02:27]} Nbd4 {[%emt 0:00:19]} 34. Qxd5 {[%emt 0:00:41]} Rxd5 {[%emt 0:00:40]} 35. e4 {[%emt 0:03:34]} Rd8 {[%emt 0:00:13]} 36. f4 {[%emt 0:00:11]} e5 {[%emt 0:05:58]} 37. fxe5 {[%emt 0:02:08]} Nxe5 {[%emt 0:00:45] Pair of Knights!} 38. Rd2 {[%emt 0:00:22]} Nc4 {[%emt 0:01:25]} 39. Rd3 {[%emt 0:00:01]} Ne6 {[%emt 0:01:28]} 40. Rxd8+ {[%emt 0:00:11]} Nxd8 {[%emt 0:00:01]} 41. Kf3 {[%emt 0:11:36]} Ne6 {[%emt 0:00:59]} 42. h4 {[%emt 0:00:13] Prevents Ng5+.} Bd4 {[%emt 0:01:53]} 43. Bb4 {[%emt 0:00:25]} Ne5+ {[%emt 0:00:59]} 44. Kg2 {[%emt 0:00:08]} Ng4 {[%emt 0:00:07]} 45. Rc1 {[%emt 0:00:11]} Kh7 {[%emt 0:00:41]} 46. Bd6 {[%emt 0:00:28]} Be5 {[%emt 0:00:28]} 47. Be7 {[%emt 0:01:22]} Nf6 {[%emt 0:02:00]} 48. Re1 {[%emt 0:01:55]} Kg6 {[%emt 0:00:54]} 49. Kh3 {[%emt 0:00:56]} Nd4 {[%emt 0:01:00]} 50. Kg2 {[%emt 0:00:33]} Ng4 {[%emt 0:00:34]} 51. Bc5 {[%emt 0:02:03]} Nc6 {[%emt 0:00:52]} 52. Rb1 {[%emt 0:00:45]} Nf6 {[%emt 0:00:32]} 53. Rb6 {[%emt 0:01:36]} Nd4 {[%emt 0:00:47]} 54. Rb4 {[%emt 0:02:55]} Nc2 {[%emt 0:05:16]} ({Much less strong is} 54... Nxe4 55. Bxd4 Bd6 56. Rb6 $16) 55. Rc4 {[%emt 0:02:49]} Ne1+ {[%emt 0:01:55]} 56. Kh3 {[%emt 0:00:09]} Nf3 {[%emt 0:02:53] ...Nd2 is the strong threat.} 57. Be3 {[%emt 0:03:56] Inhibits Nd2.} Ng4 {[%emt 0:00:37]} 58. Bb6 {[%emt 0:03:56]} (58. Bf4 $142) 58... Nd2 {[%emt 0:00:31]} 59. Rb4 {[%emt 0:00:55]} Nf6 {[%emt 0:00:38]} 60. Rb5 {[%emt 0:00:46]} Ng4 {[%emt 0:02:56]} 61. Rb4 {[%emt 0:00:51]} Bc3 {[%emt 0:00:31]} 62. Ra4 {[%emt 0:01:03]} Nf6 {[%emt 0:00:12]} 63. Ba5 {[%emt 0:01:21]} Bxa5 {[%emt 0:00:10]} 64. Rxa5 {[%emt 0:00:06]} Ndxe4 {[%emt 0:00:05]} 65. Kg2 {[%emt 0:00:07]} Nc3 {[%emt 0:04:05]} 66. Kh3 $2 {[%emt 0:00:40]} (66. Rg5+ {keeps fighting.} Kh6 67. Rc5) 66... Ncd5 {[%emt 0:00:14]} (66... Nfe4 $142 67. Re5 f6) 67. Ra4 $2 {[%emt 0:00:05]} (67. Kg2) 67... Nc7 {[%emt 0:00:52]} (67... Ne3 $142 {Strongly threatening ...Nfg4.} 68. Rf4 Neg4) 68. Rb4 $2 {[%emt 0:00:11]} (68. Ra5) 68... Ne6 {[%emt 0:00:06]} (68... Ng4 $142 {White must now prevent ...Kf6.} 69. Rb6+ Ne6) 69. Ra4 $2 {[%emt 0:00:04]} (69. Rb5) 69... Ng4 {[%emt 0:00:21]} 70. Ra5 {[%emt 0:00:01]} f6 {[%emt 0:00:21]} 71. Ra4 {[%emt 0:00:16]} Kf5 {[%emt 0:00:12]} 72. Ra5+ {[%emt 0:00:02]} Ne5 {[%emt 0:00:07]} 73. Ra7 {[%emt 0:00:04]} g6 {[%emt 0:01:37]} 74. Ra4 {[%emt 0:00:13]} Ng4 {[%emt 0:00:52]} 75. Ra5+ {[%emt 0:00:06] [#]} Ke4 $1 {[%emt 0:00:33]} 76. Ra4+ {[%emt 0:00:29]} Nd4 {[%emt 0:01:23] Hoping for ...Ne3.} 77. Rb4 $2 {[%emt 0:01:42]} (77. Kg2) 77... Ne3 {[%emt 0:00:48]} (77... Kd3 $142 78. Kg2 Ne3+ 79. Kg1 Nc4) 78. Rb6 {[%emt 0:00:18]} Ng4 {[%emt 0:00:37] ( -> ...Nc2)} 79. Rb4 {[%emt 0:00:04]} Ke3 {[%emt 0:00:56]} 80. Rb8 {[%emt 0:00:36]} Kf3 {[%emt 0:01:13]} 81. Rb3+ {[%emt 0:01:10]} Ne3 {[%emt 0:00:11]} 82. Rb6 {[%emt 0:00:08]} Ng4 {[%emt 0:01:39]} 83. Rb3+ $1 {[%emt 0:00:01]} Ke4 $2 {[%emt 0:00:18] Weighted Error Value: White=0.24 (precise) /Black=0.17 (very precise)} (83... Kf2 {mates} 84. Rf3+ Ke2 85. Rc3 Nf5 86. Rc4 Nf2+ 87. Kh2 Ne3 88. Rc8 Ne4 89. Rb8 Kf3 90. Re8 Nf1+ 91. Kg1 Nfxg3 92. Re7 Ne2+ 93. Kf1 Nf4 94. Ke1 f5 95. Re8 Kg4 96. Kd1 Kxh4 97. Ra8 Kg3 98. Ra3+ Kg4 99. Ke1 g5 100. Ra6 Kh4 101. Ra2 g4 102. Rh2+ Kg3 103. Ra2 Kh3 104. Kd1 Nc3+ 105. Kc2 Nxa2 106. Kb3 {[#]} g3 $1 107. Kxa2 g2 108. Kb3 g1=Q 109. Kc4 Qb6 110. Kc3 Qc5+ 111. Kb2 Nd3+ 112. Kb3 f4 113. Ka2 Qc3 114. Kb1 Qb2#) 1/2-1/2